bitfinex/quotes_ETHUSD_20260126
["timestamp","ask_amount","ask_price","bid_price","bid_amount"]
[1769401631619,0.002,2870.7,2869.4,9.11815047]
[1769401632419,0.002,2870.7,2869.6,9.11815047]
[1769401633327,0.002,2870.7,2869.8,8.88458017]
[1769401633525,0.002,2870.7,2870.0,8.88458017]
[1769401634717,0.002,2870.7,2870.1,0.87104978]
[1769401635190,0.002,2870.7,2870.1,9.75562995]
[1769401640134,0.002,2870.7,2870.1,8.88458017]
[1769401640640,0.002,2870.5,2869.9,0.87108106]
[1769401641934,0.002,2870.5,2869.8,10.25031822]
[1769401642228,0.002,2870.5,2869.8,0.87112574]
[1769401642428,0.002,2870.5,2869.7,0.87115111]
[1769401642918,0.002,2870.5,2869.8,0.8711388]
[1769401644224,0.002,2870.5,2869.7,0.87115279]
[1769401647118,0.002,2870.5,2869.6,10.2503791]
[1769401649133,0.002,2870.5,2869.8,9.37919248]
[1769401649336,0.002,2870.5,2869.7,0.87114557]
[1769401649639,0.002,2870.5,2869.6,0.87118549]
[1769401649933,0.002,2870.5,2869.7,0.87116539]
[1769401650243,0.002,2870.5,2869.7,10.25035787]
[1769401651019,0.002,2870.5,2869.8,10.25033135]
[1769401652510,0.002,2870.5,2869.8,10.25133135]
[1769401652911,0.002,2870.5,2869.8,9.38019248]
[1769401654229,0.002,2870.5,2869.8,10.2513332]
[1769401654424,0.002,2870.5,2869.8,9.38019248]
[1769401654835,0.002,2870.5,2869.8,10.25133119]
[1769401655235,0.002,2870.5,2869.8,9.38019248]
[1769401658350,0.002,2870.5,2869.8,0.001]
[1769401659044,8.21493341,2870.5,2869.8,0.001]
[1769401659352,0.82149334,2870.4,2869.8,0.001]
[1769401663019,0.002,2870.5,2869.8,0.001]
[1769401664151,0.002,2870.5,2870.0,0.001]
[1769401664723,0.002,2870.5,2870.0,9.07981276]
[1769401665123,0.50523008,2870.9,2870.0,9.07981276]
[1769401665339,8.67529406,2870.9,2870.0,9.07981276]
[1769401665547,0.86752941,2870.8,2870.0,0.001]
[1769401666150,1.59752941,2870.8,2870.0,0.001]
[1769401667751,8.14963052,2870.7,2870.0,0.001]
[1769401667956,8.87963052,2870.7,2870.0,0.001]
[1769401671550,8.14963052,2870.7,2870.0,0.001]
[1769401671866,0.73,2871.5,2870.0,9.07981276]
[1769401672163,0.73,2871.5,2870.2,9.07881276]
[1769401672464,0.88467615,2871.5,2870.4,9.07881276]
[1769401672640,0.73,2871.6,2870.4,9.07881276]
[1769401673046,8.83406761,2871.6,2870.4,9.07881276]
[1769401673951,8.10406761,2871.6,2870.4,9.07881276]
[1769401674153,0.73,2871.5,2870.4,9.07881276]
[1769401674551,8.82352711,2871.5,2870.4,9.07881276]
[1769401674960,0.88235271,2871.4,2870.4,9.94976686]
[1769401675362,0.73,2871.5,2870.4,9.94976686]
[1769401675580,0.002,2871.7,2870.4,9.94976686]
[1769401675792,0.732,2871.7,2870.4,9.94976686]
[1769401677198,0.732,2871.7,2870.4,9.95076686]
[1769401677558,0.002,2871.3,2870.4,9.95076686]
[1769401677764,0.002,2871.3,2870.5,9.07881276]
[1769401678602,0.002,2871.3,2870.4,9.95076686]
[1769401689626,0.002,2871.3,2870.4,9.07981276]
[1769401689779,0.002,2871.3,2870.4,9.95076616]
[1769401690118,13.89498384,2871.1,2870.4,0.001]
[1769401690413,9.3208649,2871.0,2870.0,4.65207929]
[1769401690609,9.3980051,2871.0,2870.0,0.001]
[1769401691216,9.3980051,2871.0,2869.8,0.001]
[1769401691217,13.88548142,2870.4,2869.8,0.001]
[1769401691413,0.73,2870.8,2870.0,8.93423967]
[1769401691599,2.11949838,2871.0,2870.0,8.93423967]
[1769401691804,1.38949838,2871.0,2870.0,8.93423967]
[1769401692124,0.73,2870.9,2870.0,8.93423967]
[1769401692284,0.73,2871.0,2870.2,8.93423967]
[1769401693419,0.73,2871.0,2870.3,9.84006832]
[1769401693582,0.002,2871.3,2870.3,9.80522876]
[1769401693782,0.73,2871.2,2870.3,9.80522876]
[1769401693988,0.002,2871.3,2870.3,9.80522876]
[1769401694189,0.732,2871.3,2870.3,9.80522876]
[1769401696287,0.732,2871.3,2870.3,8.93423967]
[1769401697197,0.732,2871.3,2870.3,9.8052243]
[1769401697397,0.86123561,2871.2,2870.3,9.8052243]
[1769401697812,0.86123561,2871.2,2870.3,8.93423967]
[1769401698310,0.86123561,2871.2,2870.3,9.80522113]
[1769401700292,0.002,2871.3,2870.3,9.80522113]
[1769401701317,0.002,2871.3,2870.5,0.001]
[1769401701502,0.002,2871.3,2870.6,9.11623754]
[1769401701689,0.002,2871.1,2870.6,9.98713266]
[1769401703321,0.002,2871.5,2870.7,9.11623754]
[1769401703505,0.002,2871.5,2870.8,9.11623754]
[1769401704223,0.002,2871.5,2870.9,0.87080706]
[1769401705646,0.002,2871.5,2870.8,9.98705893]
[1769401709430,1e-08,2871.7,2870.9,9.11623754]
[1769401710235,1e-08,2871.7,2871.1,9.11623754]
[1769401712729,1e-08,2871.7,2871.2,9.98695361]
[1769401713301,1e-08,2871.7,2871.2,9.11623754]
[1769401713525,1e-08,2871.7,2871.1,0.87072947]
[1769401713837,0.002,2871.5,2871.1,0.87072947]
[1769401714335,0.002,2871.5,2871.1,9.61035188]
[1769401723141,1e-08,2871.7,2871.1,9.61035188]
[1769401726150,1e-08,2871.7,2871.3,0.001]
[1769401729249,1e-08,2871.7,2871.3,0.87168575]
[1769401729451,1e-08,2871.7,2871.3,9.61130816]
[1769401729617,1e-08,2871.7,2871.4,8.77444862]
[1769401729952,1e-08,2871.7,2871.4,8.73962241]
[1769401730124,7.64313328,2872.4,2871.4,8.73962241]
[1769401730318,0.729,2872.3,2871.4,8.73962241]
[1769401730750,8.37213328,2872.4,2871.4,8.73962241]
[1769401731053,7.63748245,2872.3,2871.4,8.73962241]
[1769401731224,7.63748245,2872.3,2871.5,9.61024751]
[1769401733220,0.00053778,2871.9,2871.5,9.61024751]
[1769401733430,0.002,2872.5,2871.6,8.73962241]
[1769401733636,7.62837257,2872.5,2871.6,8.73962241]
[1769401734948,0.002,2872.5,2871.7,8.73962241]
[1769401735356,0.002,2872.5,2871.8,0.87053415]
[1769401735650,0.002,2872.5,2871.8,9.61015656]
[1769401736022,8.44633373,2872.5,2871.6,0.87058344]
[1769401736229,8.44633373,2872.5,2871.4,3.48259037]
[1769401736721,8.44633373,2872.5,2871.6,0.8705929]
[1769401737358,8.44633373,2872.5,2871.5,9.61024751]
[1769401737527,8.44633373,2872.5,2871.6,8.73962241]
[1769401737948,8.44633373,2872.5,2871.7,0.001]
[1769401738256,0.002,2872.3,2871.7,0.001]
[1769401741376,7.5863002,2872.3,2871.7,0.001]
[1769401743128,0.002,2872.3,2871.7,0.001]
[1769401744471,0.002,2872.3,2871.7,9.13175547]
[1769401745976,0.002,2872.3,2871.7,8.261191]
[1769401746195,0.002,2872.3,2871.7,0.001]
[1769401748777,7.54320249,2872.3,2871.7,0.001]
[1769401749934,0.002,2872.1,2871.7,0.001]
[1769401751666,0.731,2872.3,2871.8,8.260191]
[1769401753051,0.731,2872.3,2871.8,9.13071188]
[1769401753843,0.731,2872.3,2871.8,8.260191]
[1769401754339,0.731,2872.3,2871.7,0.001]
[1769401755172,8.24583462,2872.3,2871.7,0.001]
[1769401757269,0.731,2872.3,2871.7,0.001]
[1769401757475,0.731,2872.3,2871.8,8.59479374]
[1769401757639,0.002,2872.3,2871.8,8.59479374]
[1769401759644,0.002,2872.3,2871.8,9.465321]
[1769401761878,0.002,2872.3,2871.8,8.59479374]
[1769401762291,0.002,2872.3,2871.9,0.001]
[1769401762456,0.002,2872.1,2871.9,0.001]
[1769401764068,0.002,2872.1,2871.6,0.87058711]
[1769401764382,0.002,2872.1,2871.6,9.50020464]
[1769401764557,0.002,2872.1,2871.6,9.46538085]
[1769401765073,0.002,2872.1,2871.7,8.62961631]
[1769401765275,0.002,2872.1,2871.7,8.59479374]
[1769401768552,0.002,2872.3,2871.7,8.59479374]
[1769401768888,0.002,2872.5,2872.0,8.59479374]
[1769401769580,0.002,2872.5,2871.9,5.95971947]
[1769401769886,0.002,2872.5,2871.7,0.87056298]
[1769401769887,0.002,2872.5,2871.8,8.59479374]
[1769401770254,0.002,2872.5,2871.6,0.8705745]
[1769401770255,6.60190504,2872.5,2871.6,0.8705745]
[1769401771288,7.26229554,2872.5,2871.6,0.8705745]
[1769401771461,7.26229554,2872.5,2871.6,9.46536824]
[1769401771788,7.26229554,2872.5,2871.6,8.59479374]
[1769401772583,7.26229554,2872.5,2871.3,9.44343662]
[1769401772584,6.59927773,2872.3,2871.4,8.59479374]
[1769401773581,6.59927773,2872.3,2871.4,9.46544877]
[1769401773894,7.32544455,2872.3,2871.4,9.46544877]
[1769401774095,7.32544455,2872.3,2872.0,0.001]
[1769401774295,7.32744455,2872.3,2872.0,0.001]
[1769401778184,0.72816682,2872.3,2872.0,0.001]
[1769401779101,0.729,2872.2,2872.0,0.001]
[1769401783598,0.80533393,2872.2,2872.0,0.001]
[1769401783806,0.731,2872.3,2872.0,0.001]
[1769401785806,0.731,2872.3,2872.2,0.001]
[1769401786776,7.32496742,2872.3,2872.2,0.001]
[1769401788107,0.731,2872.3,2872.2,0.001]
[1769401798628,0.002,2872.5,2872.2,0.001]
[1769401798803,0.729,2872.6,2872.2,0.001]
[1769401801327,0.002,2872.7,2872.2,8.31180432]
[1769401801530,0.002,2872.9,2872.7,5.95866044]
[1769401801720,0.729,2873.3,2872.7,14.26946476]
[1769401801916,0.002,2873.5,2872.8,8.31080432]
[1769401802443,7.91409976,2873.7,2872.2,0.001]
[1769401802444,0.731,2873.7,2873.1,8.31080432]
[1769401802626,0.0771402,2874.4,2873.4,8.31080432]
[1769401802804,0.0771402,2874.0,2873.4,8.31080432]
[1769401803006,0.0771402,2873.6,2872.8,8.31080432]
[1769401803238,6.36865599,2873.6,2872.8,8.31080432]
[1769401803429,7.09765599,2873.6,2872.8,8.31080432]
[1769401803811,0.0771402,2873.4,2872.8,8.31080432]
[1769401804019,0.7097656,2873.5,2872.8,8.31080432]
[1769401804218,0.729,2873.7,2872.8,8.31080432]
[1769401804422,0.86974672,2874.4,2873.4,8.55048677]
[1769401804775,0.0771402,2874.3,2873.4,8.55048677]
[1769401804920,7.11875493,2874.5,2873.4,8.55048677]
[1769401805126,0.729,2874.4,2873.4,8.55048677]
[1769401805335,0.8697095,2874.6,2873.4,8.55048677]
[1769401805336,0.0771402,2874.5,2873.4,8.55048677]
[1769401805540,6.03580064,2875.0,2872.8,6.82887249]
[1769401805541,0.8061402,2875.3,2874.3,8.55048677]
[1769401806565,0.86950473,2875.2,2874.3,8.55048677]
[1769401806727,0.0771402,2875.1,2874.3,8.55048677]
[1769401806929,0.0771402,2874.7,2874.0,8.55048677]
[1769401807229,0.0771402,2874.5,2873.5,8.55048677]
[1769401807452,0.729,2874.6,2873.5,8.55048677]
[1769401807741,0.7070795,2874.5,2873.8,8.55048677]
[1769401808042,9.81969816,2875.3,2873.8,8.55048677]
[1769401808209,0.729,2874.9,2873.8,8.55048677]
[1769401808623,1.59860135,2874.9,2873.8,8.55048677]
[1769401808820,0.94674017,2874.9,2873.8,8.55048677]
[1769401809049,0.002,2874.3,2873.8,8.55048677]
[1769401809552,0.86938378,2875.6,2874.4,8.55048677]
[1769401809760,0.8061402,2875.5,2874.4,8.55048677]
[1769401809959,0.002,2875.7,2874.7,8.55048677]
[1769401810254,0.87135426,2875.7,2874.7,8.55048677]
[1769401811361,0.002,2875.7,2874.7,8.55048677]
[1769401812074,6.25046692,2875.7,2874.7,8.55048677]
[1769401812376,0.71197982,2875.6,2874.7,8.55048677]
[1769401812533,0.002,2875.7,2874.7,8.55048677]
[1769401813345,0.0771402,2875.6,2874.4,8.55048677]
[1769401813530,0.0771402,2875.4,2874.4,8.55048677]
[1769401813730,0.0771402,2875.6,2874.4,8.55048677]
[1769401813928,0.0771402,2875.5,2874.4,8.55048677]
[1769401814159,0.70802463,2875.5,2874.4,8.55048677]
[1769401814351,0.70802463,2875.5,2874.4,8.05048677]
[1769401814749,0.0771402,2875.3,2874.1,8.55048677]
[1769401814983,0.0771402,2874.7,2873.5,8.55048677]
[1769401815274,0.0771402,2874.7,2873.6,8.55048677]
[1769401815579,0.75433807,2874.7,2873.6,8.55048677]
[1769401815868,0.67719787,2874.7,2873.6,8.55048677]
[1769401816040,0.67719787,2874.7,2873.0,3.48066066]
[1769401816041,6.6014993,2875.2,2873.9,8.55048677]
[1769401816366,0.729,2875.2,2874.4,14.50914721]
[1769401816665,1.59853032,2875.2,2874.5,8.55048677]
[1769401816874,0.86953032,2875.2,2874.5,8.55048677]
[1769401817244,1.59848681,2875.3,2874.5,8.55048677]
[1769401817441,0.50762804,2875.2,2874.5,8.55048677]
[1769401817677,0.86947619,2875.3,2874.5,8.55048677]
[1769401818235,0.0771402,2875.2,2873.5,9.48972496]
[1769401818542,0.0771402,2875.2,2873.7,8.61970621]
[1769401818748,0.86953497,2875.1,2873.7,8.61970621]
[1769401820860,0.0771402,2875.0,2873.7,8.61970621]
[1769401821168,0.0771402,2875.0,2873.7,8.62070621]
[1769401821356,0.002,2875.0,2873.7,8.62070621]
[1769401821679,0.002,2875.0,2873.9,8.61970621]
[1769401821881,0.002,2875.0,2874.1,8.61970621]
[1769401825045,0.002,2875.0,2874.1,9.48953914]
[1769401825479,0.002,2875.0,2874.3,8.61970621]
[1769401828574,0.002,2875.0,2874.3,9.48946239]
[1769401828783,0.002,2875.0,2874.5,8.61970621]
[1769401829834,0.002,2875.2,2874.3,0.86977378]
[1769401830040,0.002,2875.2,2874.4,8.61970621]
[1769401830344,0.002,2875.2,2874.4,9.48944948]
[1769401830559,0.002,2875.2,2874.5,0.86971453]
[1769401830788,0.002,2875.2,2874.6,8.61970621]
[1769401833599,0.002,2874.8,2874.6,8.61970621]
[1769401835259,0.002,2874.8,2874.4,8.41046582]
[1769401835982,0.002,2874.8,2874.3,0.001]
[1769401840865,0.002,2874.8,2874.3,8.41146582]
[1769401842105,0.002,2875.0,2874.5,8.41046582]
[1769401842504,0.002,2875.2,2874.6,8.41046582]
[1769401845669,0.002,2875.2,2874.5,0.001]
[1769401846415,0.002,2875.2,2874.5,8.41146582]
[1769401847115,0.002,2875.2,2874.5,0.001]
[1769401847417,6.24076391,2875.2,2874.5,0.001]
[1769401847614,6.87264755,2875.1,2874.5,0.001]
[1769401847823,0.71102384,2875.1,2874.5,8.41146582]
[1769401848019,0.002,2875.2,2874.5,8.41146582]
[1769401850117,6.13132182,2875.2,2874.3,0.001]
[1769401851110,0.86953497,2875.1,2874.3,0.001]
[1769401852018,7.72984701,2875.2,2874.3,0.001]
[1769401852200,6.14948766,2875.1,2874.3,0.001]
[1769401852509,1.60052519,2875.2,2874.3,8.41146582]
[1769401852510,0.77500129,2875.0,2874.3,8.41146582]
[1769401852711,0.002,2875.2,2874.3,8.41146582]
[1769401852901,0.002,2875.2,2874.4,0.03478986]
[1769401853101,0.002,2875.2,2874.5,8.41046582]
[1769401854922,0.002,2875.2,2874.3,0.001]
[1769401855421,0.002,2875.2,2874.3,8.41146582]
[1769401856491,5.96423725,2875.2,2874.3,0.001]
[1769401856691,0.69108519,2875.1,2874.3,0.001]
[1769401857109,6.80507893,2875.0,2874.3,0.001]
[1769401857509,0.69108519,2875.1,2874.3,8.41146582]
[1769401857698,0.002,2875.2,2874.3,8.41146582]
[1769401858394,0.002,2875.2,2874.5,0.001]
[1769401858722,0.002,2875.0,2874.5,0.001]
[1769401859024,0.002,2875.0,2874.5,8.41146582]
[1769401861785,0.002,2875.2,2874.6,8.41046582]
[1769401864428,0.002,2875.2,2874.6,8.40695582]
[1769401868029,0.002,2875.7,2874.7,7.6220213]
[1769401868197,0.002,2875.7,2874.7,7.58723507]
[1769401868403,0.002,2875.7,2874.7,6.96723507]
[1769401869302,0.6532494,2875.7,2874.7,6.96723507]
[1769401869505,7.76320184,2875.7,2874.5,7.58823507]
[1769401869724,0.0771402,2875.6,2874.5,7.58823507]
[1769401869936,0.002,2875.0,2874.5,7.58823507]
[1769401870134,0.002,2875.0,2874.5,0.001]
[1769401870835,0.002,2875.0,2874.3,7.58823507]
[1769401870836,6.20105119,2875.0,2874.3,0.001]
[1769401871013,0.62010512,2874.9,2874.3,0.001]
[1769401872635,0.87156925,2875.0,2874.3,0.001]
[1769401872836,0.002,2875.0,2874.3,0.001]
[1769401873415,0.002,2875.0,2874.3,7.58823507]
[1769401874741,0.002,2875.0,2874.3,0.001]
[1769401875554,6.12292573,2875.0,2874.3,0.001]
[1769401875741,6.81707252,2874.9,2873.7,7.58823507]
[1769401876054,7.68667535,2874.9,2873.7,7.58823507]
[1769401876418,6.81707252,2874.9,2873.7,7.58823507]
[1769401876647,7.68666816,2874.9,2873.7,7.58823507]
[1769401877248,0.0771402,2874.7,2873.7,7.58823507]
[1769401877551,0.61408304,2874.6,2873.7,7.58823507]
[1769401878049,1.48377474,2874.6,2873.7,7.58823507]
[1769401878251,0.61408304,2874.6,2873.7,7.58823507]
[1769401878617,1.48377589,2874.6,2873.7,7.58823507]
[1769401879220,6.64130061,2874.6,2873.7,0.001]
[1769401879419,0.7588113,2874.5,2873.7,0.001]
[1769401879716,0.0771402,2874.2,2873.7,0.001]
[1769401879942,6.10435777,2874.4,2873.7,0.001]
[1769401880517,6.00840824,2874.1,2872.8,7.42371178]
[1769401880842,0.7588113,2874.5,2873.0,7.42371178]
[1769401881030,0.729,2874.4,2873.2,7.42371178]
[1769401881231,0.729,2874.4,2873.4,7.42371178]
[1769401881439,0.7588113,2874.5,2873.4,7.42371178]
[1769401881953,0.86966521,2874.7,2873.4,7.42371178]
[1769401882137,0.86966521,2874.7,2873.9,0.001]
[1769401882353,6.05034661,2874.6,2873.9,0.001]
[1769401882546,0.0771402,2874.4,2873.9,0.001]
[1769401884256,6.01592915,2874.4,2873.9,0.001]
[1769401884452,5.93778895,2874.2,2872.8,7.42371178]
[1769401884660,5.93778895,2874.2,2872.8,8.29393067]
[1769401884866,5.93778895,2874.2,2872.8,7.42371178]
[1769401885459,0.0771402,2873.9,2872.8,7.42371178]
[1769401886434,0.0771402,2873.7,2872.8,7.42371178]
[1769401886861,0.68512987,2873.8,2872.8,7.42371178]
[1769401887065,0.0771402,2873.6,2872.5,7.42371178]
[1769401887449,0.94704849,2873.9,2872.5,7.42371178]
[1769401887656,0.729,2873.9,2872.5,7.42371178]
[1769401887857,0.8061402,2873.9,2872.7,7.42371178]
[1769401888455,0.0771402,2873.7,2872.7,7.42371178]
[1769401888655,0.25245878,2873.7,2872.7,7.42371178]
[1769401890578,0.0771402,2873.5,2872.3,7.42371178]
[1769401890739,5.91652472,2873.5,2872.3,7.42371178]
[1769401890938,0.0771402,2873.3,2872.3,7.42371178]
[1769401891168,0.0771402,2873.1,2872.3,7.42371178]
[1769401891372,0.67493178,2873.1,2872.3,7.42371178]
[1769401893160,1.54508441,2873.1,2872.2,0.001]
[1769401893480,0.67493178,2873.1,2872.2,0.001]
[1769401893638,0.0771402,2872.9,2872.2,0.001]
[1769401893841,0.73997733,2872.9,2872.2,0.001]
[1769401897094,0.0771402,2872.8,2872.2,0.001]
[1769401898183,0.73997733,2872.9,2872.2,0.001]
[1769401900799,6.41587597,2872.9,2872.2,0.001]
[1769401901558,0.73997733,2872.9,2872.2,7.44791327]
[1769401901870,0.0771402,2873.4,2872.3,7.44691327]
[1769401902081,5.72547302,2873.4,2872.3,7.44691327]
[1769401902414,0.0771402,2873.0,2872.2,0.001]
[1769401902574,0.0771402,2873.4,2872.2,7.44791327]
[1769401902965,0.0771402,2873.5,2872.2,7.44791327]
[1769401903293,0.65954789,2873.4,2872.2,7.44791327]
[1769401903466,0.65954789,2873.4,2872.2,8.31830835]
[1769401903791,0.0771402,2873.5,2872.2,8.31830835]
[1769401904300,0.0771402,2873.5,2872.2,7.44791327]
[1769401904468,0.0771402,2873.5,2872.2,8.31832018]
[1769401904791,0.0771402,2873.5,2872.3,0.0348153]
[1769401904989,0.0771402,2873.5,2872.4,7.44691327]
[1769401905490,0.26999618,2873.5,2872.4,7.44691327]
[1769401906260,0.19285598,2873.5,2872.4,8.3172622]
[1769401906473,0.0771402,2873.1,2872.4,7.44691327]
[1769401906693,0.0771402,2873.3,2872.4,7.44791327]
[1769401906876,5.67216934,2873.5,2872.4,7.44791327]
[1769401907077,0.0771402,2873.3,2872.4,7.44791327]
[1769401907392,0.0771402,2873.5,2872.4,7.44791327]
[1769401907597,1.14002018,2873.5,2872.4,7.44791327]
[1769401907800,0.0771402,2873.3,2872.4,7.44791327]
[1769401910406,5.83927891,2873.5,2872.4,7.44791327]
[1769401910806,6.70930357,2873.5,2872.4,7.44791327]
[1769401911380,5.83927891,2873.5,2872.4,7.44791327]
[1769401911710,0.67092704,2873.4,2872.4,7.44791327]
[1769401912423,0.67092704,2873.4,2872.4,8.31824116]
[1769401912714,0.19285685,2873.5,2872.4,8.31824116]
[1769401912715,0.17531858,2873.7,2872.6,7.44691327]
[1769401914789,0.17531858,2873.7,2872.6,8.31720175]
[1769401914992,0.002,2874.2,2872.8,7.44691327]
[1769401916217,0.002,2874.2,2873.0,7.44691327]
[1769401917205,5.46218156,2874.2,2873.0,7.44691327]
[1769401918112,0.0771402,2874.1,2873.0,7.44691327]
[1769401918317,0.55393218,2874.0,2873.0,7.44691327]
[1769401918905,0.55593218,2874.0,2873.0,7.44691327]
[1769401919787,0.55593218,2874.0,2872.7,7.44691327]
[1769401919788,0.0771402,2873.7,2872.7,7.44691327]
[1769401920203,5.50328599,2873.9,2872.7,7.44691327]
[1769401920518,0.60592182,2873.8,2872.7,7.44691327]
[1769401922199,5.48122333,2873.7,2872.7,7.44691327]
[1769401922418,0.60592182,2873.8,2872.7,7.44691327]
[1769401922989,0.0771402,2873.7,2872.7,7.44691327]
[1769401923190,5.47038385,2873.7,2872.7,7.44691327]
[1769401923394,0.69462386,2873.6,2872.7,7.44691327]
[1769401923721,0.0771402,2873.7,2872.7,7.44691327]
[1769401924303,0.68306202,2873.8,2872.7,7.44691327]
[1769401924619,0.0771402,2873.8,2872.7,7.44691327]
[1769401924820,0.94707194,2873.8,2872.7,7.44691327]
[1769401925022,5.43865482,2873.6,2872.7,7.44691327]
[1769401926031,5.43865482,2873.6,2872.6,0.001]
[1769401926328,0.0771402,2873.4,2872.6,0.001]
[1769401926531,7.03765652,2873.6,2872.6,7.76173665]
[1769401926732,0.0771402,2873.4,2872.6,7.76173665]
[1769401927452,5.41822796,2873.2,2872.6,0.001]
[1769401927727,0.0771402,2873.0,2872.6,0.001]
[1769401927901,5.41822796,2873.2,2872.6,0.001]
[1769401928096,0.5418228,2873.1,2872.6,0.001]
[1769401928320,0.54386548,2873.5,2872.6,7.76173665]
[1769401928498,0.0771402,2873.6,2872.6,7.76173665]
[1769401928921,5.39819848,2873.6,2872.6,7.76173665]
[1769401930117,0.0771402,2873.6,2872.6,7.76173665]
[1769401930692,0.8061402,2873.6,2872.6,7.76173665]
[1769401932241,1.67612971,2873.6,2872.6,7.76173665]
[1769401933018,0.0771402,2873.4,2872.6,7.76173665]
[1769401933218,0.25246719,2873.4,2872.6,7.76173665]
[1769401933833,0.17532699,2873.4,2872.6,7.76173665]
[1769401934245,0.0771402,2873.6,2872.6,7.76173665]
[1769401934445,0.8061402,2873.6,2872.6,7.76173665]
[1769401935010,0.729,2873.6,2872.6,7.76173665]
[1769401935557,0.8061402,2873.6,2872.6,7.76173665]
[1769401936942,1.67613445,2873.6,2872.6,7.76173665]
[1769401937145,0.6967955,2873.5,2872.6,7.76173665]
[1769401937512,5.31350596,2873.4,2872.6,7.76173665]
[1769401939148,0.87007969,2873.3,2872.6,7.76173665]
[1769401939522,0.6967955,2873.5,2872.6,7.76173665]
[1769401939721,0.6967955,2873.5,2872.7,0.03481045]
[1769401939924,0.729,2873.6,2872.8,7.38975161]
[1769401940244,0.86994765,2873.8,2872.8,7.38975161]
[1769401940245,0.0791402,2874.0,2872.8,7.38975161]
[1769401940445,0.729,2873.9,2872.8,7.38975161]
[1769401942849,0.002,2874.0,2872.8,8.26098184]
[1769401943143,0.002,2874.0,2873.1,7.38975161]
[1769401945317,0.002,2874.0,2873.3,7.38975161]
[1769401947243,5.22943986,2873.9,2872.9,7.38975161]
[1769401947765,0.0771402,2873.7,2872.9,7.38975161]
[1769401947968,0.69478823,2873.7,2872.8,0.001]
[1769401948269,0.0771402,2873.5,2872.8,0.001]
[1769401949337,0.9471693,2873.5,2872.8,0.001]
[1769401949739,0.0771402,2873.3,2872.8,0.001]
[1769401950839,0.729,2873.6,2872.8,0.001]
[1769401951034,1.6761316,2873.6,2872.8,0.001]
[1769401951240,2.17640126,2873.5,2872.8,0.001]
[1769401951937,0.0771402,2873.4,2872.8,0.001]
[1769401952839,0.0771402,2873.2,2872.8,0.001]
[1769401953574,0.94725828,2873.2,2872.8,0.001]
[1769401953975,5.1687594,2873.4,2872.8,0.001]
[1769401954148,0.6475123,2873.3,2872.8,0.001]
[1769401954474,0.94720572,2873.4,2872.8,0.001]
[1769401954988,6.03876162,2873.6,2873.0,0.001]
[1769401955178,6.03876162,2873.6,2872.8,0.001]
[1769401955179,0.729,2873.3,2872.8,0.001]
[1769401955845,0.729,2873.4,2872.8,7.25353048]
[1769401956065,0.729,2873.6,2872.8,7.25353048]
[1769401956546,0.0771402,2873.5,2872.8,7.25353048]
[1769401956749,0.0771402,2873.3,2872.8,0.001]
[1769401957087,0.60030746,2873.3,2872.8,0.001]
[1769401957582,0.0771402,2873.1,2872.8,0.001]
[1769401957896,0.52316726,2873.3,2872.8,0.001]
[1769401958174,1.59908163,2873.3,2872.8,0.001]
[1769401958381,0.0771402,2873.2,2872.8,0.001]
[1769401959572,0.94726225,2873.2,2872.8,0.001]
[1769401960083,0.94726225,2873.2,2872.6,0.001]
[1769401960084,0.0771402,2873.2,2872.6,0.001]
[1769401960582,0.729,2873.1,2872.6,0.001]
[1769401961247,0.0771402,2873.0,2872.6,0.001]
[1769401961456,0.0771402,2873.0,2872.2,0.001]
[1769401961796,0.58490687,2872.9,2872.2,0.001]
[1769401962090,1.45511114,2872.9,2872.2,0.001]
[1769401962264,0.58490687,2872.9,2872.2,0.001]
[1769401962467,0.0771402,2872.8,2872.2,0.001]
[1769401963073,0.58490687,2872.9,2872.2,7.25353048]
[1769401963283,0.87012692,2873.2,2872.2,7.25353048]
[1769401963454,0.8061402,2873.1,2872.2,7.25353048]
[1769401964188,0.0771402,2872.9,2872.2,0.001]
[1769401964354,0.0771402,2872.7,2872.2,0.001]
[1769401965298,0.0771402,2872.9,2872.2,0.001]
[1769401965458,0.0771402,2872.7,2872.2,0.001]
[1769401966593,0.0771402,2872.7,2872.4,0.001]
[1769401966794,0.0771402,2872.7,2872.2,0.001]
[1769401967000,0.0771402,2872.5,2872.2,0.001]
[1769401967291,0.0771402,2872.4,2872.2,0.001]
[1769401967504,0.0771402,2872.7,2871.7,7.25253048]
[1769401967664,0.0771402,2872.5,2871.7,7.25253048]
[1769401967863,0.94746806,2872.5,2871.7,7.25253048]
[1769401968376,0.94746635,2872.5,2871.7,7.25253048]
[1769401969374,0.44287544,2872.4,2871.7,7.25253048]
[1769401970462,0.94746635,2872.5,2871.7,7.25253048]
[1769401971306,0.0771402,2872.3,2871.7,7.25253048]
[1769401971455,0.729,2872.2,2871.7,7.25253048]
[1769401971655,0.729,2872.2,2871.3,7.25353048]
[1769401974015,0.58293819,2872.8,2871.5,7.25253048]
[1769401974174,0.8061402,2872.7,2871.5,7.25253048]
[1769401974369,0.58293819,2872.8,2871.5,7.25253048]
[1769401974604,0.58293819,2872.8,2871.3,0.87168214]
[1769401974605,0.729,2872.9,2871.7,7.25253048]
[1769401974906,0.729,2872.9,2871.9,7.25253048]
[1769401975102,0.0771402,2873.2,2871.9,7.25253048]
[1769401975308,0.729,2873.1,2871.9,7.25253048]
[1769401975674,0.0771402,2873.0,2871.9,7.25253048]
[1769401976206,0.729,2873.1,2871.9,7.25253048]
[1769401976771,0.94711962,2873.7,2871.9,8.12303391]
[1769401976976,0.0771402,2873.5,2871.9,8.12303391]
[1769401977408,0.0771402,2873.3,2871.9,8.12303391]
[1769401977609,0.0771402,2873.3,2872.1,7.25253048]
[1769401978218,0.0771402,2873.3,2872.1,8.12296239]
[1769401978510,0.0771402,2873.7,2872.1,8.12296239]
[1769401978712,0.8061402,2873.7,2872.1,8.12296239]
[1769401978902,0.002,2873.0,2872.1,8.12296239]
[1769401979104,0.002,2873.0,2872.2,7.25253048]
[1769401980418,0.002,2873.0,2872.4,7.25253048]